[Event "106th British-ch 2019"]
[Site "Torquay"]
[Date "2019.07.31"]
[Round "5.16"]
[White "Claridge-Hansen, William"]
[Black "Hand, Freddie"]
[Result "1-0"]
[ECO "A11"]
[WhiteElo "2297"]
[BlackElo "2142"]
[Annotator "NA"]
[PlyCount "87"]
[EventDate "2019.07.27"]
[EventType "swiss"]
[EventCountry "GBR"]
[SourceTitle "playchess.com"]
[Source "ChessBase"]
[SourceQuality "1"]
[TimeControl "40/5400+30:1800+30"]

1. c4 {[%emt 0:00:00]} c6 {[%emt 0:00:00]} 2. g3 {[%emt 0:00:00]} d5 {[%emt 0:00:00]} 3. Nf3 {[%emt 0:00:08]} Nf6 {[%emt 0:00:23]} 4. Bg2 {[%emt 0:00:23]} dxc4 {[%emt 0:00:34]} 5. O-O {[%emt 0:00:31]} b5 {[%emt 0:00:48]} 6. a4 {[%emt 0:01:34]} Bb7 {[%emt 0:00:33]} 7. b3 {[%emt 0:00:54]} b4 {[%emt 0:00:29]} 8. bxc4 {[%emt 0:02:19]} c5 {[%emt 0:00:04]} 9. a5 {[%emt 0:08:06]} a6 {[%emt 0:00:44]} 10. d3 {[%emt 0:06:08]} e6 {[%emt 0:01:45]} 11. Nbd2 {[%emt 0:01:50]} Be7 {[%emt 0:00:36]} 12. Nb3 {[%emt 0:01:07]} O-O {[%emt 0:06:04]} 13. Bb2 {[%emt 0:08:28]} Nbd7 {[%emt 0:10:25]} 14. e4 {[%emt 0:06:06]} h6 {[%emt 0:45:10]} 15. Qe2 {[%emt 0:08:09]} Qc7 {[%emt 0:01:26]} 16. Ne1 {[%emt 0:12:22]} Nh7 {[%emt 0:22:07]} 17. f4 {[%emt 0:02:59]} Rfd8 {[%emt 0:04:16]} 18. e5 {[%emt 0:08:06]} g6 {[%emt 0:01:08]} 19. g4 {[%emt 0:02:14]} Bf8 {[%emt 0:00:42]} 20. f5 {[%emt 0:01:36]} Re8 {[%emt 0:02:05]} 21. f6 {[%emt 0:03:59]} Rad8 {[%emt 0:00:04]} 22. h4 {[%emt 0:01:17]} Nb8 {[%emt 0:00:23]} 23. Bxb7 {[%emt 0:01:07]} Qxb7 {[%emt 0:00:05]} 24. Nf3 {[%emt 0:03:09]} Nc6 {[%emt 0:00:13]} 25. Nfd2 {[%emt 0:00:59]} Qd7 {[%emt 0:00:21]} 26. Rf3 {[%emt 0:00:13]} Qc7 {[%emt 0:00:45]} 27. Qh2 {[%emt 0:00:49]} Rd7 {[%emt 0:00:17]} 28. Ne4 {[%emt 0:01:14]} Nd4 {[%emt 0:00:36]} 29. Bxd4 {[%emt 0:00:34]} cxd4 {[%emt 0:00:05]} 30. Rff1 {[%emt 0:01:47]} Red8 {[%emt 0:00:52]} 31. Qf4 {[%emt 0:03:58]} Rc8 {[%emt 0:01:14]} 32. g5 {[%emt 0:00:57]} h5 {[%emt 0:00:21]} 33. Qg3 {[%emt 0:02:08]} Qc6 {[%emt 0:00:37]} 34. Rfc1 {[%emt 0:01:36]} Qb7 {[%emt 0:00:55]} 35. Ra2 {[%emt 0:01:39]} Qc6 {[%emt 0:00:06]} 36. Kf1 {[%emt 0:01:16]} Rdd8 {[%emt 0:00:15]} 37. Kg1 {[%emt 0:00:22]} Rd7 {[%emt 0:00:07]} 38. c5 {[%emt 0:01:50]} Qd5 {[%emt 0:00:11]} 39. Rc4 {[%emt 0:00:20]} Rb7 {[%emt 0:01:10]} 40. Rac2 {[%emt 0:02:28]} Rb5 {[%emt 0:01:02]} 41. Qf4 {[%emt 0:07:12]} Rd8 {[%emt 0:04:10]} 42. Ned2 {[%emt 0:07:15]} Qb7 {[%emt 0:05:10]} 43. Rxd4 {[%emt 0:03:15]} Rc8 {[%emt 0:00:38]} 44. Rdc4 {[%emt 0:00:25]} 1-0

[Event "106th British-ch 2019"]
[Site "Torquay"]
[Date "2019.07.31"]
[Round "5.17"]
[White "Brewer, Callum D"]
[Black "Zapolskis, Antanas"]
[Result "1/2-1/2"]
[ECO "B00"]
[WhiteElo "2086"]
[BlackElo "2290"]
[Annotator "ChessBase"]
[PlyCount "169"]
[EventDate "2019.07.27"]
[EventType "swiss"]
[EventCountry "GBR"]
[SourceTitle "playchess.com"]
[Source "ChessBase"]
[SourceQuality "1"]
[TimeControl "40/5400+30:1800+30"]

1. d4 {[%emt 0:00:36]} b5 {[%emt 0:00:00]} 2. e4 {[%emt 0:00:12]} a6 {[%emt 0:00:00]} 3. a4 {[%emt 0:00:05]} b4 {[%emt 0:00:44]} 4. Nf3 {[%emt 0:01:18]} e6 {[%emt 0:00:13]} 5. Bd3 {[%emt 0:01:20]} c5 {[%emt 0:01:20]} 6. Nbd2 {[%emt 0:01:00]} cxd4 {[%emt 0:01:50]} 7. Nxd4 {[%emt 0:01:05]} Bb7 {[%emt 0:00:59]} 8. O-O {[%emt 0:02:30]} Qc7 {[%emt 0:13:27]} 9. Nc4 {[%emt 0:06:36]} d5 {[%emt 0:00:23]} 10. exd5 {[%emt 0:04:16]} Bxd5 {[%emt 0:00:09]} 11. Qe2 {[%emt 0:06:22]} Nf6 {[%emt 0:04:57]} 12. g3 {[%emt 0:08:14]} Nc6 {[%emt 0:16:30]} 13. Nf5 {[%emt 0:12:23]} Bxc4 {[%emt 0:02:36]} 14. Bxc4 {[%emt 0:00:41]} Qe5 {[%emt 0:00:13]} 15. Qf3 {[%emt 0:14:15]} Qe4 {[%emt 0:00:30]} 16. Qxe4 {[%emt 0:00:30]} Nxe4 {[%emt 0:00:45]} 17. f3 {[%emt 0:09:32]} Ne5 {[%emt 0:02:22]} 18. Be2 {[%emt 0:03:05]} exf5 {[%emt 0:01:28]} 19. fxe4 {[%emt 0:00:11]} Bc5+ {[%emt 0:02:37]} 20. Kg2 {[%emt 0:00:26]} fxe4 {[%emt 0:00:55]} 21. Rf4 {[%emt 0:00:29]} e3 {[%emt 0:00:52]} 22. Re4 {[%emt 0:05:06]} f6 {[%emt 0:02:28]} 23. Bxe3 {[%emt 0:00:02]} Bxe3 {[%emt 0:01:32]} 24. Rxe3 {[%emt 0:00:02]} a5 {[%emt 0:00:48]} 25. c3 {[%emt 0:01:17]} Rb8 {[%emt 0:00:55]} 26. Bb5+ {[%emt 0:02:41]} Ke7 {[%emt 0:01:29]} 27. cxb4 {[%emt 0:07:24]} axb4 {[%emt 0:00:10]} 28. Re4 {[%emt 0:01:56]} Rhd8 {[%emt 0:06:58]} 29. Rf1 {[%emt 0:00:04]} Rd2+ {[%emt 0:06:01]} 30. Rf2 {[%emt 0:00:13]} Rxf2+ {[%emt 0:00:29]} 31. Kxf2 {[%emt 0:00:13]} Kd6 {[%emt 0:00:22]} 32. Re2 {[%emt 0:02:14]} Kc5 {[%emt 0:02:00]} 33. Rc2+ {[%emt 0:01:19]} Kb6 {[%emt 0:00:11]} 34. Ke3 {[%emt 0:01:11]} Rd8 {[%emt 0:02:03]} 35. Be2 {[%emt 0:00:33]} Nc6 {[%emt 0:05:33]} 36. Rc4 {[%emt 0:00:24]} b3 {[%emt 0:06:44]} 37. Bf3 {[%emt 0:02:23]} Ne5 {[%emt 0:00:39]} 38. Rb4+ {[%emt 0:01:11]} Ka5 {[%emt 0:00:09]} 39. Rxb3 {[%emt 0:00:23]} Kxa4 {[%emt 0:00:42]} 40. Ra3+ {[%emt 0:00:09]} Kb4 {[%emt 0:00:08]} 41. Be2 {[%emt 0:30:36]} Rd7 {[%emt 0:30:46]} 42. Rc3 {[%emt 0:02:43]} Re7 {[%emt 0:06:23]} 43. Kf2 {[%emt 0:01:34]} g5 {[%emt 0:00:40]} 44. Rc8 {[%emt 0:00:00]} Rb7 {[%emt 0:00:00]} 45. Rf8 {[%emt 0:00:00]} Rb6 {[%emt 0:00:00]} 46. Rh8 {[%emt 0:00:00]} Kc5 {[%emt 0:00:00]} 47. Rxh7 {[%emt 0:00:00]} Rxb2 {[%emt 0:00:00]} 48. Ke3 {[%emt 0:00:00]} Kd5 {[%emt 0:00:00]} 49. Ra7 {[%emt 0:00:00]} Rb3+ {[%emt 0:00:00]} 50. Kf2 {[%emt 0:00:00]} Ke4 {[%emt 0:00:00]} 51. Ra6 {[%emt 0:00:00]} Rb2 {[%emt 0:00:00]} 52. Ra4+ {[%emt 0:00:00]} Kf5 {[%emt 0:00:00]} 53. Ke3 {[%emt 0:00:00]} g4 {[%emt 0:00:00]} 54. h3 {[%emt 0:00:00]} gxh3 {[%emt 0:03:38]} 55. Rh4 {[%emt 0:00:00]} Rb3+ {[%emt 0:07:11]} 56. Kf2 {[%emt 0:00:33]} Nf7 {[%emt 0:02:09]} 57. Rxh3 {[%emt 0:04:28]} Ke5 {[%emt 0:00:10]} 58. Rh7 {[%emt 0:00:38]} Ng5 {[%emt 0:00:11]} 59. Re7+ {[%emt 0:00:12]} Kf5 {[%emt 0:00:12]} 60. Re3 {[%emt 0:01:48]} Ne4+ {[%emt 0:02:06]} 61. Kf3 {[%emt 0:00:41]} Rxe3+ {[%emt 0:00:19]} 62. Kxe3 {[%emt 0:00:01]} Nxg3 {[%emt 0:00:10]} 63. Ba6 {[%emt 0:01:14]} Kg5 {[%emt 0:01:36]} 64. Bb7 {[%emt 0:00:32]} f5 {[%emt 0:00:13]} 65. Kf3 {[%emt 0:01:04]} Nh5 {[%emt 0:00:17]} 66. Bc6 {[%emt 0:00:23]} Nf6 {[%emt 0:00:23]} 67. Ba8 {[%emt 0:00:52]} Nd7 {[%emt 0:00:12]} 68. Bb7 {[%emt 0:00:21]} Ne5+ {[%emt 0:00:12]} 69. Kf2 {[%emt 0:00:24]} f4 {[%emt 0:00:26]} 70. Bc8 {[%emt 0:00:33]} Kf6 {[%emt 0:00:20]} 71. Ke2 {[%emt 0:01:41]} Ke7 {[%emt 0:00:44]} 72. Kd2 {[%emt 0:00:32]} Nc4+ {[%emt 0:01:09]} 73. Kd3 {[%emt 0:01:03]} Nd6 {[%emt 0:00:09]} 74. Bg4 {[%emt 0:00:14]} Kf6 {[%emt 0:00:07]} 75. Ke2 {[%emt 0:00:30]} Ke5 {[%emt 0:00:44]} 76. Bf3 {[%emt 0:00:20]} Nb5 {[%emt 0:00:28]} 77. Kf2 {[%emt 0:00:25]} Nd4 {[%emt 0:00:43]} 78. Bb7 {[%emt 0:00:11]} Kf5 {[%emt 0:00:28]} 79. Bc8+ {[%emt 0:00:49]} Ke4 {[%emt 0:00:49]} 80. Bb7+ {[%emt 0:00:02]} Ke5 {[%emt 0:01:08]} 81. Ba8 {[%emt 0:00:34]} Ne6 {[%emt 0:00:22]} 82. Kf3 {[%emt 0:00:39]} Ng5+ {[%emt 0:01:40]} 83. Kg4 {[%emt 0:00:06]} Ne6 {[%emt 0:00:33]} 84. Kf3 {[%emt 0:00:07]} Nd4+ {[%emt 0:00:06]} 85. Kg4 {[%emt 0:00:12]} 1/2-1/2

[Event "106th British-ch 2019"]
[Site "Torquay"]
[Date "2019.07.31"]
[Round "5.20"]
[White "Jones, Steven A"]
[Black "Derakhshani, Borna"]
[Result "0-1"]
[ECO "B12"]
[WhiteElo "2117"]
[BlackElo "2300"]
[Annotator "NA"]
[PlyCount "38"]
[EventDate "2019.07.27"]
[EventType "swiss"]
[EventCountry "GBR"]
[SourceTitle "playchess.com"]
[Source "ChessBase"]
[SourceQuality "1"]
[TimeControl "40/5400+30:1800+30"]

1. e4 {[%emt 0:00:00]} c6 {[%emt 0:06:38]} 2. d4 {[%emt 0:00:11]} d5 {[%emt 0:00:03]} 3. e5 {[%emt 0:00:50]} Bf5 {[%emt 0:00:05]} 4. Nc3 {[%emt 0:00:23]} e6 {[%emt 0:00:23]} 5. g4 {[%emt 0:01:10]} Bg6 {[%emt 0:00:05]} 6. Nge2 {[%emt 0:00:36]} c5 {[%emt 0:00:24]} 7. h4 {[%emt 0:00:52]} h5 {[%emt 0:00:03]} 8. Nf4 {[%emt 0:01:06]} Bh7 {[%emt 0:00:03]} 9. Nxh5 {[%emt 0:01:00]} Nc6 {[%emt 0:00:06]} 10. dxc5 {[%emt 0:00:50]} Bxc5 {[%emt 0:00:07]} 11. Bb5 {[%emt 0:00:26]} Kf8 {[%emt 0:06:47]} 12. Bxc6 {[%emt 0:04:32]} bxc6 {[%emt 0:00:04]} 13. Na4 {[%emt 0:00:46]} Be7 {[%emt 0:00:48]} 14. Be3 {[%emt 0:00:16]} Qb8 {[%emt 0:06:04]} 15. Qd4 {[%emt 0:05:41]} Bxc2 {[%emt 0:01:24]} 16. Nc5 {[%emt 0:01:00]} Qb5 {[%emt 0:12:17]} 17. Rc1 {[%emt 0:13:23]} Be4 {[%emt 0:17:39]} 18. f3 {[%emt 0:09:11]} Bxf3 {[%emt 0:04:31]} 19. Qf4 {[%emt 0:00:42]} Qe2# {[%emt 0:00:04]} 0-1

[Event "106th British-ch 2019"]
[Site "Torquay"]
[Date "2019.07.31"]
[Round "5.21"]
[White "Rudd, Jack"]
[Black "Longson, Sarah N"]
[Result "1-0"]
[ECO "D37"]
[WhiteElo "2275"]
[BlackElo "2095"]
[Annotator "NA"]
[PlyCount "65"]
[EventDate "2019.07.27"]
[EventType "swiss"]
[EventCountry "GBR"]
[SourceTitle "playchess.com"]
[Source "ChessBase"]
[SourceQuality "1"]
[TimeControl "40/5400+30:1800+30"]

1. d4 {[%emt 0:00:00]} d5 {[%emt 0:00:00]} 2. c4 {[%emt 0:00:00]} e6 {[%emt 0:00:00]} 3. Nc3 {[%emt 0:00:00]} a6 {[%emt 0:00:00]} 4. cxd5 {[%emt 0:00:00]} exd5 {[%emt 0:00:00]} 5. Nf3 {[%emt 0:00:07]} Nf6 {[%emt 0:00:00]} 6. Bg5 {[%emt 0:00:07]} Be6 {[%emt 0:00:06]} 7. e3 {[%emt 0:00:10]} Nbd7 {[%emt 0:00:19]} 8. Bd3 {[%emt 0:00:07]} h6 {[%emt 0:00:12]} 9. Bh4 {[%emt 0:00:05]} g5 {[%emt 0:00:11]} 10. Bg3 {[%emt 0:00:06]} Nh5 {[%emt 0:00:10]} 11. Qc2 {[%emt 0:01:38]} Nxg3 {[%emt 0:01:40]} 12. hxg3 {[%emt 0:00:07]} Bg7 {[%emt 0:08:58]} 13. O-O-O {[%emt 0:00:26]} c6 {[%emt 0:02:35]} 14. Bf5 {[%emt 0:01:54]} Bxf5 {[%emt 0:01:13]} 15. Qxf5 {[%emt 0:00:23]} Qf6 {[%emt 0:01:02]} 16. Qxf6 {[%emt 0:00:39]} Nxf6 {[%emt 0:01:03]} 17. Ne5 {[%emt 0:00:13]} Ne4 {[%emt 0:02:16]} 18. Nxe4 {[%emt 0:00:29]} dxe4 {[%emt 0:00:22]} 19. Nc4 {[%emt 0:00:29]} Ke7 {[%emt 0:01:33]} 20. g4 {[%emt 0:02:37]} Rhe8 {[%emt 0:06:29]} 21. Kb1 {[%emt 0:01:24]} Rad8 {[%emt 0:01:25]} 22. Rc1 {[%emt 0:00:31]} Rd5 {[%emt 0:02:22]} 23. Nb6 {[%emt 0:02:46]} Rd6 {[%emt 0:08:37]} 24. Na4 {[%emt 0:02:53]} Kf8 {[%emt 0:05:51]} 25. Rc3 {[%emt 0:01:54]} Re7 {[%emt 0:09:59]} 26. Rhc1 {[%emt 0:00:25]} Rd5 {[%emt 0:04:26]} 27. Nb6 {[%emt 0:01:38]} Rb5 {[%emt 0:02:27]} 28. Nc4 {[%emt 0:00:21]} Rd5 {[%emt 0:01:02]} 29. a4 {[%emt 0:01:24]} f5 {[%emt 0:05:51]} 30. Nb6 {[%emt 0:01:07]} Ra5 {[%emt 0:01:48]} 31. b4 {[%emt 0:00:08]} Rd5 {[%emt 0:01:30]} 32. Nxd5 {[%emt 0:00:08]} cxd5 {[%emt 0:00:01]} 33. gxf5 {[%emt 0:00:11]} 1-0

[Event "106th British-ch 2019"]
[Site "Torquay"]
[Date "2019.07.31"]
[Round "5.22"]
[White "Krzyzanowski, Patryk"]
[Black "Moore, Graham J"]
[Result "1/2-1/2"]
[ECO "E04"]
[WhiteElo "2114"]
[BlackElo "2264"]
[Annotator "NA"]
[PlyCount "110"]
[EventDate "2019.07.27"]
[EventType "swiss"]
[EventCountry "GBR"]
[SourceTitle "playchess.com"]
[Source "ChessBase"]
[SourceQuality "1"]
[TimeControl "40/5400+30:1800+30"]

1. Nf3 {[%emt 0:00:00]} d5 {[%emt 0:00:58]} 2. d4 {[%emt 0:00:35]} Nf6 {[%emt 0:00:24]} 3. c4 {[%emt 0:00:31]} e6 {[%emt 0:00:11]} 4. g3 {[%emt 0:03:03]} dxc4 {[%emt 0:00:10]} 5. Bg2 {[%emt 0:00:21]} a6 {[%emt 0:00:04]} 6. O-O {[%emt 0:00:12]} Nc6 {[%emt 0:00:03]} 7. Ne5 {[%emt 0:11:39]} Nxe5 {[%emt 0:02:24]} 8. dxe5 {[%emt 0:00:06]} Qxd1 {[%emt 0:00:04]} 9. Rxd1 {[%emt 0:00:08]} Nd7 {[%emt 0:00:17]} 10. Rd4 {[%emt 0:08:49]} Nxe5 {[%emt 0:02:18]} 11. Bf4 {[%emt 0:00:00]} Bd6 {[%emt 0:00:43]} 12. Nd2 {[%emt 0:00:00]} Bd7 {[%emt 0:22:47]} 13. Ne4 {[%emt 0:16:20]} Ke7 {[%emt 0:13:10]} 14. Rad1 {[%emt 0:00:00]} Rhd8 {[%emt 0:05:21]} 15. Nxd6 {[%emt 0:03:09]} cxd6 {[%emt 0:00:44]} 16. Bxb7 {[%emt 0:00:41]} Rab8 {[%emt 0:00:08]} 17. Rxd6 {[%emt 0:00:13]} Rxb7 {[%emt 0:00:14]} 18. Bxe5 {[%emt 0:00:13]} f6 {[%emt 0:00:32]} 19. Bc3 {[%emt 0:00:30]} Ra8 {[%emt 0:00:39]} 20. Bb4 {[%emt 0:06:33]} Ke8 {[%emt 0:01:07]} 21. a3 {[%emt 0:11:22]} e5 {[%emt 0:01:09]} 22. f4 {[%emt 0:02:47]} exf4 {[%emt 0:01:05]} 23. gxf4 {[%emt 0:00:10]} Bb5 {[%emt 0:00:07]} 24. e4 {[%emt 0:01:16]} Kf7 {[%emt 0:00:06]} 25. e5 {[%emt 0:00:25]} Re8 {[%emt 0:00:33]} 26. Bc3 {[%emt 0:01:36]} fxe5 {[%emt 0:01:17]} 27. fxe5 {[%emt 0:00:31]} Re6 {[%emt 0:00:17]} 28. Rf1+ {[%emt 0:01:05]} Ke7 {[%emt 0:00:12]} 29. Bb4 {[%emt 0:00:28]} Rxd6 {[%emt 0:00:19]} 30. exd6+ {[%emt 0:00:22]} Ke6 {[%emt 0:01:20]} 31. Re1+ {[%emt 0:06:06]} Kf5 {[%emt 0:01:28]} 32. Ba5 {[%emt 0:03:25]} Rd7 {[%emt 0:00:29]} 33. Bc7 {[%emt 0:01:48]} Kg4 {[%emt 0:00:45]} 34. Re3 {[%emt 0:03:27]} g6 {[%emt 0:03:26]} 35. Kf2 {[%emt 0:03:11]} h6 {[%emt 0:02:30]} 36. Ke1 {[%emt 0:00:20]} g5 {[%emt 0:00:57]} 37. Kd2 {[%emt 0:00:17]} Rf7 {[%emt 0:00:17]} 38. Rg3+ {[%emt 0:05:43]} Kh4 {[%emt 0:03:46]} 39. Kc3 {[%emt 0:02:19]} g4 {[%emt 0:00:14]} 40. a4 {[%emt 0:07:13]} Bxa4 {[%emt 0:01:50]} 41. Kxc4 {[%emt 0:30:15]} Rf2 {[%emt 0:30:13]} 42. Bd8+ {[%emt 0:00:00]} Kh5 {[%emt 0:00:00]} 43. h3 {[%emt 0:00:00]} Rxb2 {[%emt 0:00:00]} 44. Rxg4 {[%emt 0:00:00]} Bd7 {[%emt 0:00:00]} 45. Re4 {[%emt 0:00:00]} Rc2+ {[%emt 0:00:00]} 46. Kd4 {[%emt 0:00:00]} Rc8 {[%emt 0:00:00]} 47. Rh4+ {[%emt 0:00:00]} Kg6 {[%emt 0:00:00]} 48. Ba5 {[%emt 0:00:00]} Kg5 {[%emt 0:00:00]} 49. Be1 {[%emt 0:00:00]} Rf8 {[%emt 0:00:00]} 50. Re4 {[%emt 0:00:00]} Bxh3 {[%emt 0:00:00]} 51. Bd2+ {[%emt 0:00:00]} Kg6 {[%emt 0:11:03]} 52. Rh4 {[%emt 0:00:00]} Bd7 {[%emt 0:00:36]} 53. Rxh6+ {[%emt 0:00:00]} Kg7 {[%emt 0:00:25]} 54. Rh5 {[%emt 0:00:57]} Rf5 {[%emt 0:01:02]} 55. Rxf5 {[%emt 0:05:38]} Bxf5 {[%emt 0:00:05]} 1/2-1/2

[Event "106th British-ch 2019"]
[Site "Torquay"]
[Date "2019.07.31"]
[Round "5.23"]
[White "Ogunshola, Olugbemiga (Ben)"]
[Black "Yoon, Jacob D"]
[Result "1/2-1/2"]
[ECO "A13"]
[WhiteElo "2172"]
[BlackElo "1963"]
[Annotator "NA"]
[PlyCount "53"]
[EventDate "2019.07.27"]
[EventType "swiss"]
[EventCountry "GBR"]
[SourceTitle "playchess.com"]
[Source "ChessBase"]
[SourceQuality "1"]
[TimeControl "40/5400+30:1800+30"]

1. c4 {[%emt 0:00:51]} e6 {[%emt 0:00:00]} 2. g3 {[%emt 0:00:16]} d5 {[%emt 0:00:19]} 3. Bg2 {[%emt 0:00:07]} dxc4 {[%emt 0:00:19]} 4. Qc2 {[%emt 0:00:27]} Nd7 {[%emt 0:00:53]} 5. Qxc4 {[%emt 0:00:06]} a6 {[%emt 0:00:32]} 6. Qc2 {[%emt 0:00:47]} Rb8 {[%emt 0:00:33]} 7. Nf3 {[%emt 0:00:32]} b5 {[%emt 0:00:08]} 8. Nd4 {[%emt 0:02:13]} Ne7 {[%emt 0:00:24]} 9. Nc6 {[%emt 0:04:49]} Nxc6 {[%emt 0:00:06]} 10. Bxc6 {[%emt 0:00:02]} Bb7 {[%emt 0:01:16]} 11. O-O {[%emt 0:01:57]} Be7 {[%emt 0:05:08]} 12. d4 {[%emt 0:02:04]} O-O {[%emt 0:02:22]} 13. Bf4 {[%emt 0:05:26]} Bd6 {[%emt 0:01:04]} 14. Bxd6 {[%emt 0:02:39]} cxd6 {[%emt 0:00:10]} 15. Bxb7 {[%emt 0:00:04]} Rxb7 {[%emt 0:00:07]} 16. Rc1 {[%emt 0:00:05]} Rb8 {[%emt 0:03:49]} 17. Nd2 {[%emt 0:01:02]} Rc8 {[%emt 0:02:10]} 18. Qd3 {[%emt 0:00:03]} Nf6 {[%emt 0:03:38]} 19. Rc2 {[%emt 0:17:13]} Rxc2 {[%emt 0:01:46]} 20. Qxc2 {[%emt 0:00:03]} Qb6 {[%emt 0:00:10]} 21. Nf3 {[%emt 0:00:20]} h6 {[%emt 0:05:07]} 22. Rc1 {[%emt 0:00:19]} Qa5 {[%emt 0:00:05]} 23. a3 {[%emt 0:00:35]} Nd5 {[%emt 0:01:56]} 24. Qc6 {[%emt 0:07:52]} Rd8 {[%emt 0:05:27]} 25. Qb7 {[%emt 0:04:15]} Qa4 {[%emt 0:02:19]} 26. Kg2 {[%emt 0:13:56]} Qb3 {[%emt 0:02:53]} 27. Rc8 {[%emt 0:00:30]} 1/2-1/2

[Event "106th British-ch 2019"]
[Site "Torquay"]
[Date "2019.07.31"]
[Round "5.24"]
[White "Ledger, Dave J"]
[Black "Player, Edmund C"]
[Result "1/2-1/2"]
[ECO "C54"]
[WhiteElo "2168"]
[BlackElo "2202"]
[Annotator "NA"]
[PlyCount "97"]
[EventDate "2019.07.27"]
[EventType "swiss"]
[EventCountry "GBR"]
[SourceTitle "playchess.com"]
[Source "ChessBase"]
[SourceQuality "1"]
[TimeControl "40/5400+30:1800+30"]

1. e4 {[%emt 0:00:00]} e5 {[%emt 0:00:00]} 2. Nf3 {[%emt 0:00:00]} Nc6 {[%emt 0:00:00]} 3. Bc4 {[%emt 0:00:20]} Bc5 {[%emt 0:00:00]} 4. c3 {[%emt 0:01:24]} Nf6 {[%emt 0:00:43]} 5. d3 {[%emt 0:00:18]} d6 {[%emt 0:01:54]} 6. O-O {[%emt 0:03:00]} O-O {[%emt 0:02:42]} 7. a4 {[%emt 0:02:03]} a5 {[%emt 0:02:00]} 8. Na3 {[%emt 0:01:37]} h6 {[%emt 0:00:57]} 9. Nc2 {[%emt 0:02:07]} Bb6 {[%emt 0:04:04]} 10. Be3 {[%emt 0:06:35]} Bxe3 {[%emt 0:00:54]} 11. Nxe3 {[%emt 0:00:35]} Be6 {[%emt 0:00:42]} 12. Re1 {[%emt 0:04:38]} Re8 {[%emt 0:08:47]} 13. Bb5 {[%emt 0:06:22]} Bd7 {[%emt 0:04:53]} 14. Qb3 {[%emt 0:06:32]} Qc8 {[%emt 0:12:55]} 15. Nh4 {[%emt 0:05:44]} Ne7 {[%emt 0:07:18]} 16. Bc4 {[%emt 0:08:45]} Rf8 {[%emt 0:04:00]} 17. g3 {[%emt 0:04:46]} c6 {[%emt 0:18:42]} 18. Nhg2 {[%emt 0:06:56]} Rb8 {[%emt 0:03:21]} 19. Qa2 {[%emt 0:03:00]} b5 {[%emt 0:01:55]} 20. Bb3 {[%emt 0:01:15]} bxa4 {[%emt 0:15:09]} 21. Bxa4 {[%emt 0:00:41]} Be6 {[%emt 0:00:07]} 22. Nc4 {[%emt 0:04:46]} Qc7 {[%emt 0:01:33]} 23. Qa3 {[%emt 0:01:33]} Bxc4 {[%emt 0:02:27]} 24. dxc4 {[%emt 0:00:06]} Nd7 {[%emt 0:00:21]} 25. Bc2 {[%emt 0:03:45]} f5 {[%emt 0:02:43]} 26. b3 {[%emt 0:04:05]} fxe4 {[%emt 0:01:19]} 27. Qxa5 {[%emt 0:02:53]} Qb7 {[%emt 0:00:02]} 28. Qa7 {[%emt 0:01:46]} d5 {[%emt 0:01:31]} 29. Red1 {[%emt 0:05:37]} Nf6 {[%emt 0:00:48]} 30. Ne3 {[%emt 0:00:48]} Rfd8 {[%emt 0:00:27]} 31. Qc5 {[%emt 0:01:20]} Rd7 {[%emt 0:00:41]} 32. b4 {[%emt 0:00:56]} Rbd8 {[%emt 0:00:23]} 33. Nf1 {[%emt 0:03:56]} Qc7 {[%emt 0:00:34]} 34. Ra5 {[%emt 0:01:19]} d4 {[%emt 0:01:34]} 35. Qxe5 {[%emt 0:00:30]} Qxe5 {[%emt 0:00:22]} 36. Rxe5 {[%emt 0:00:03]} dxc3 {[%emt 0:01:22]} 37. Rc1 {[%emt 0:00:45]} Ng6 {[%emt 0:00:39]} 38. Rc5 {[%emt 0:01:13]} Rb7 {[%emt 0:00:33]} 39. b5 {[%emt 0:01:07]} cxb5 {[%emt 0:00:22]} 40. cxb5 {[%emt 0:00:25]} Rdb8 {[%emt 0:00:38]} 41. Bb3+ {[%emt 0:31:21]} Kh8 {[%emt 0:08:15]} 42. R1xc3 {[%emt 0:00:00]} Rxb5 {[%emt 0:01:06]} 43. Rc8+ Rxc8 {[%emt 0:02:34]} 44. Rxc8+ {[%emt 0:00:00]} Kh7 {[%emt 0:00:10]} 45. Bc2 {[%emt 0:00:00]} Rb4 {[%emt 0:12:31]} 46. Kg2 {[%emt 0:00:00]} Ne5 {[%emt 0:01:37]} 47. Ne3 {[%emt 0:00:00]} Kg6 {[%emt 0:01:56]} 48. h3 {[%emt 0:00:00]} Rd4 {[%emt 0:01:01]} 49. Rc7 {[%emt 0:00:00]} 1/2-1/2

[Event "106th British-ch 2019"]
[Site "Torquay"]
[Date "2019.07.31"]
[Round "5.25"]
[White "Villiers, Thomas"]
[Black "Crickmore, Neil Eg"]
[Result "0-1"]
[ECO "B35"]
[WhiteElo "2218"]
[BlackElo "2187"]
[Annotator "NA"]
[PlyCount "78"]
[EventDate "2019.07.27"]
[EventType "swiss"]
[EventCountry "GBR"]
[SourceTitle "playchess.com"]
[Source "ChessBase"]
[SourceQuality "1"]
[TimeControl "40/5400+30:1800+30"]

1. e4 {[%emt 0:00:00]} c5 {[%emt 0:00:00]} 2. Nf3 {[%emt 0:00:03]} g6 {[%emt 0:00:00]} 3. d4 {[%emt 0:00:51]} cxd4 {[%emt 0:00:00]} 4. Nxd4 {[%emt 0:00:10]} Nc6 {[%emt 0:00:00]} 5. Nc3 {[%emt 0:01:11]} Bg7 {[%emt 0:00:02]} 6. Be3 {[%emt 0:00:16]} Nf6 {[%emt 0:00:16]} 7. Bc4 {[%emt 0:01:37]} O-O {[%emt 0:00:11]} 8. Bb3 {[%emt 0:00:27]} a5 {[%emt 0:00:05]} 9. f3 {[%emt 0:00:51]} d5 {[%emt 0:05:51]} 10. exd5 {[%emt 0:01:39]} Nb4 {[%emt 0:06:39]} 11. Ndb5 {[%emt 0:00:10]} a4 {[%emt 0:00:50]} 12. Bc4 {[%emt 0:00:24]} Bf5 {[%emt 0:00:07]} 13. Rc1 {[%emt 0:06:41]} Rc8 {[%emt 0:02:16]} 14. b3 {[%emt 0:00:19]} Nxc2+ {[%emt 0:07:34]} 15. Rxc2 {[%emt 0:00:58]} Bxc2 {[%emt 0:00:06]} 16. Qxc2 {[%emt 0:00:11]} Nxd5 {[%emt 0:00:09]} 17. Nxd5 {[%emt 0:02:21]} Qxd5 {[%emt 0:05:02]} 18. Qe2 {[%emt 0:00:58]} Qe5 {[%emt 0:05:22]} 19. O-O {[%emt 0:01:36]} axb3 {[%emt 0:01:22]} 20. axb3 {[%emt 0:00:48]} Rfd8 {[%emt 0:05:07]} 21. Qf2 {[%emt 0:03:22]} Ra8 {[%emt 0:17:16]} 22. f4 {[%emt 0:04:07]} Qe4 {[%emt 0:04:39]} 23. Bb6 {[%emt 0:01:48]} Rd7 {[%emt 0:01:25]} 24. Re1 {[%emt 0:05:25]} Ra1 {[%emt 0:01:27]} 25. Rxa1 {[%emt 0:01:16]} Bxa1 {[%emt 0:00:02]} 26. h3 {[%emt 0:01:22]} Rd1+ {[%emt 0:14:53]} 27. Kh2 {[%emt 0:01:44]} g5 {[%emt 0:02:10]} 28. Bc7 {[%emt 0:01:51]} Bf6 {[%emt 0:07:28]} 29. fxg5 {[%emt 0:12:16]} Be5+ {[%emt 0:00:52]} 30. Bxe5 {[%emt 0:00:09]} Qxe5+ {[%emt 0:00:07]} 31. g3 {[%emt 0:00:08]} e6 {[%emt 0:00:29]} 32. h4 {[%emt 0:01:24]} Qe4 {[%emt 0:06:00]} 33. Qg2 {[%emt 0:00:13]} Qe5 {[%emt 0:01:31]} 34. Qxb7 {[%emt 0:05:10]} Rd2+ {[%emt 0:02:12]} 35. Kh3 {[%emt 0:02:16]} Qf5+ {[%emt 0:00:16]} 36. g4 {[%emt 0:00:06]} Qf4 {[%emt 0:00:07]} 37. Qa8+ {[%emt 0:00:37]} Kg7 {[%emt 0:00:09]} 38. Qa1+ {[%emt 0:00:11]} e5 {[%emt 0:01:23]} 39. Qg1 {[%emt 0:00:29]} Qf3+ {[%emt 0:01:10]} 0-1